[Event "Titled Tuesday Blitz March 01 Late 2022"]
[White "Dubov, Daniil"]
[Black "Djokic, Mihailo"]
[WhiteFideId "24126055"]
[BlackFideId "976440"]
[WhiteElo "2791"]
[BlackElo "2008"]
[Result "1-0"]
[Round "06"]
[TimeControl "180+1"]
[Date "2022.03.01"]
[WhiteClock "0:00:03"]
[BlackClock "0:00:01"]

1. e4 {[%clk 0:03:00]}  c5 {[%clk 0:02:59]} 2. Nf3 {[%clk 0:03:00]}  d6 {[%clk 0:03:00]} 3. d4 {[%clk 0:03:00]}  cxd4 {[%clk 0:03:01]} 4. Nxd4 {[%clk 0:03:01]}  Nf6 {[%clk 0:03:01]} 5. Nc3 {[%clk 0:03:01]}  g6 {[%clk 0:03:02]} 6. Be3 {[%clk 0:02:59]}  Bg7 {[%clk 0:03:02]} 7. f3 {[%clk 0:03:00]}  O-O {[%clk 0:03:02]} 8. Qd2 {[%clk 0:02:59]}  Nc6 {[%clk 0:03:03]} 9. O-O-O {[%clk 0:02:56]}  Bd7 {[%clk 0:03:03]} 10. h4 {[%clk 0:02:48]}  Rc8 {[%clk 0:03:03]} 11. Kb1 {[%clk 0:02:40]}  Ne5 {[%clk 0:03:03]} 12. h5 {[%clk 0:02:36]}  Nxh5 {[%clk 0:03:03]} 13. g4 {[%clk 0:02:34]}  Ng3 {[%clk 0:03:02]} 14. Rh3 {[%clk 0:01:58]}  Nxf1 {[%clk 0:03:02]} 15. Rxf1 {[%clk 0:01:58]}  Nc4 {[%clk 0:03:02]} 16. Qc1 {[%clk 0:01:43]}  Nxe3 {[%clk 0:03:01]} 17. Qxe3 {[%clk 0:01:42]}  Qb6 {[%clk 0:03:01]} 18. Nd5 {[%clk 0:01:38]}  Qd8 {[%clk 0:02:03]} 19. Rfh1 {[%clk 0:01:30]}  h5 {[%clk 0:02:02]} 20. Nf5 {[%clk 0:01:23]}  Bxf5 {[%clk 0:01:32]} 21. exf5 {[%clk 0:01:19]}  e6 {[%clk 0:01:01]} 22. fxe6 {[%clk 0:01:16]}  Re8 {[%clk 0:01:01]} 23. e7 {[%clk 0:01:06]}  Qa5 {[%clk 0:01:01]} 24. Qd3 {[%clk 0:00:33]}  Rc5 {[%clk 0:00:55]} 25. b4 {[%clk 0:00:31]}  Rb5 {[%clk 0:00:30]} 26. a3 {[%clk 0:00:22]}  hxg4 {[%clk 0:00:15]} 27. fxg4 {[%clk 0:00:21]}  Rxd5 {[%clk 0:00:15]} 28. bxa5 {[%clk 0:00:20]}  Rxd3 {[%clk 0:00:16]} 29. Rxd3 {[%clk 0:00:19]}  Rxe7 {[%clk 0:00:16]} 30. Rxd6 {[%clk 0:00:19]}  Be5 {[%clk 0:00:12]} 31. Rd5 {[%clk 0:00:13]}  Bc3 {[%clk 0:00:10]} 32. Ka2 {[%clk 0:00:11]}  Kg7 {[%clk 0:00:09]} 33. Kb3 {[%clk 0:00:11]}  Be5 {[%clk 0:00:04]} 34. Rhd1 {[%clk 0:00:08]}  Bf4 {[%clk 0:00:03]} 35. Rd7 {[%clk 0:00:07]}  Re3+ {[%clk 0:00:03]} 36. R1d3 {[%clk 0:00:07]}  Re5 {[%clk 0:00:02]} 37. Rxb7 {[%clk 0:00:05]}  Rxa5 {[%clk 0:00:02]} 38. Rdd7 {[%clk 0:00:06]}  Kh6 {[%clk 0:00:01]} 39. Rxf7 {[%clk 0:00:06]}  Bd6 {[%clk 0:00:01]} 40. a4 {[%clk 0:00:05]}  Rc5 {[%clk 0:00:01]} 41. Rb5 {[%clk 0:00:04]}  Rc6 {[%clk 0:00:01]} 42. Rf6 {[%clk 0:00:03]} 1-0


[Site "https://www.chess.com"]

[Event "Titled Tuesday Blitz March 01 Late 2022"]
[White "Erdogdu, Mert"]
[Black "Perez Torres, Nabi Isaias"]
[WhiteFideId "6301495"]
[BlackFideId "5120373"]
[WhiteElo "2485"]
[BlackElo "1755"]
[Result "1-0"]
[Round "06"]
[TimeControl "180+1"]
[Date "2022.03.02"]
[WhiteClock "0:00:06"]
[BlackClock "0:00:04"]

1. e4 {[%clk 0:03:00]}  c5 {[%clk 0:02:59]} 2. Nf3 {[%clk 0:03:00]}  e6 {[%clk 0:02:59]} 3. d4 {[%clk 0:03:01]}  cxd4 {[%clk 0:03:00]} 4. Nxd4 {[%clk 0:03:02]}  Nc6 {[%clk 0:03:00]} 5. Nc3 {[%clk 0:03:02]}  Qc7 {[%clk 0:03:00]} 6. Be3 {[%clk 0:03:02]}  a6 {[%clk 0:03:00]} 7. Qd2 {[%clk 0:03:03]}  Nf6 {[%clk 0:03:00]} 8. O-O-O {[%clk 0:03:03]}  b5 {[%clk 0:02:59]} 9. f3 {[%clk 0:03:03]}  Be7 {[%clk 0:02:58]} 10. g4 {[%clk 0:03:03]}  Bb7 {[%clk 0:02:52]} 11. g5 {[%clk 0:03:02]}  Nh5 {[%clk 0:02:52]} 12. Nxc6 {[%clk 0:03:01]}  dxc6 {[%clk 0:02:47]} 13. Qe1 {[%clk 0:02:53]}  e5 {[%clk 0:02:46]} 14. Ne2 {[%clk 0:02:49]}  O-O {[%clk 0:02:37]} 15. Ng3 {[%clk 0:02:37]}  Nf4 {[%clk 0:02:31]} 16. h4 {[%clk 0:02:06]}  g6 {[%clk 0:02:23]} 17. Bh3 {[%clk 0:02:00]}  Rad8 {[%clk 0:02:22]} 18. Bg4 {[%clk 0:02:00]}  Bc8 {[%clk 0:02:22]} 19. Bxc8 {[%clk 0:01:57]}  Qxc8 {[%clk 0:02:22]} 20. Qf2 {[%clk 0:01:54]}  c5 {[%clk 0:01:34]} 21. Ne2 {[%clk 0:01:46]}  Ne6 {[%clk 0:01:33]} 22. Qh2 {[%clk 0:01:36]}  Qc7 {[%clk 0:01:22]} 23. Nc3 {[%clk 0:01:27]}  b4 {[%clk 0:00:59]} 24. Nd5 {[%clk 0:01:26]}  Rxd5 {[%clk 0:00:58]} 25. exd5 {[%clk 0:01:21]}  Nd4 {[%clk 0:00:54]} 26. Bxd4 {[%clk 0:01:02]}  cxd4 {[%clk 0:00:54]} 27. Rxd4 {[%clk 0:01:03]}  Bc5 {[%clk 0:00:44]} 28. Re4 {[%clk 0:00:58]}  Re8 {[%clk 0:00:41]} 29. Rd1 {[%clk 0:00:56]}  a5 {[%clk 0:00:41]} 30. Kb1 {[%clk 0:00:55]}  a4 {[%clk 0:00:40]} 31. Qd2 {[%clk 0:00:55]}  Bd6 {[%clk 0:00:38]} 32. Rxb4 {[%clk 0:00:54]}  a3 {[%clk 0:00:34]} 33. bxa3 {[%clk 0:00:50]}  Ra8 {[%clk 0:00:22]} 34. Rb3 {[%clk 0:00:28]}  Ra4 {[%clk 0:00:20]} 35. Qf2 {[%clk 0:00:16]}  Bc5 {[%clk 0:00:18]} 36. d6 {[%clk 0:00:14]}  Bxd6 {[%clk 0:00:17]} 37. Qe2 {[%clk 0:00:10]}  Bc5 {[%clk 0:00:16]} 38. Qb5 {[%clk 0:00:09]}  Rxh4 {[%clk 0:00:14]} 39. Qe8+ {[%clk 0:00:08]}  Kg7 {[%clk 0:00:14]} 40. Rb8 {[%clk 0:00:06]}  Qxb8+ {[%clk 0:00:03]} 41. Qxb8 {[%clk 0:00:06]}  Bd4 {[%clk 0:00:04]} 42. Rxd4 {[%clk 0:00:06]}  exd4 {[%clk 0:00:04]} 43. Qe5+ {[%clk 0:00:06]}  Kg8 {[%clk 0:00:04]} 44. a4 {[%clk 0:00:06]}  h6 {[%clk 0:00:04]} 45. gxh6 {[%clk 0:00:06]}  Rh5 {[%clk 0:00:04]} 46. Qg7# {[%clk 0:00:06]} 1-0


[Site "https://www.chess.com"]

[Event "Titled Tuesday Blitz March 01 Late 2022"]
[White "Estrada Nieto, Julian"]
[Black "Balint, Vilmos"]
[WhiteFideId "5101018"]
[BlackFideId "718050"]
[WhiteElo "2246"]
[BlackElo "2059"]
[Result "1-0"]
[Round "06"]
[TimeControl "180+1"]
[Date "2022.03.02"]
[WhiteClock "0:00:20"]
[BlackClock "0:01:46"]

1. e4 {[%clk 0:03:00]}  e6 {[%clk 0:02:59]} 2. d4 {[%clk 0:03:00]}  d5 {[%clk 0:03:00]} 3. Nd2 {[%clk 0:03:00]}  a6 {[%clk 0:02:59]} 4. Bd3 {[%clk 0:02:59]}  c5 {[%clk 0:02:59]} 5. dxc5 {[%clk 0:02:58]}  Bxc5 {[%clk 0:02:58]} 6. Ngf3 {[%clk 0:02:56]}  Nf6 {[%clk 0:02:59]} 7. Qe2 {[%clk 0:02:56]}  O-O {[%clk 0:02:59]} 8. O-O {[%clk 0:02:56]}  Nc6 {[%clk 0:02:58]} 9. c3 {[%clk 0:02:53]}  b5 {[%clk 0:02:54]} 10. e5 {[%clk 0:02:45]}  Nd7 {[%clk 0:02:52]} 11. Nb3 {[%clk 0:02:45]}  Be7 {[%clk 0:02:47]} 12. a4 {[%clk 0:02:43]}  b4 {[%clk 0:02:46]} 13. Nbd4 {[%clk 0:02:40]}  Bb7 {[%clk 0:02:40]} 14. Nxc6 {[%clk 0:02:37]}  Bxc6 {[%clk 0:02:41]} 15. cxb4 {[%clk 0:02:33]}  Bxb4 {[%clk 0:02:40]} 16. Bxh7+ {[%clk 0:02:20]}  Kxh7 {[%clk 0:02:32]} 17. Ng5+ {[%clk 0:02:19]}  Kg6 {[%clk 0:02:29]} 18. Qc2+ {[%clk 0:02:16]}  f5 {[%clk 0:02:26]} 19. exf6+ {[%clk 0:02:10]}  Kxf6 {[%clk 0:02:26]} 20. Qxc6 {[%clk 0:02:00]}  Re8 {[%clk 0:02:15]} 21. a5 {[%clk 0:01:27]}  Ne5 {[%clk 0:02:08]} 22. Qa4 {[%clk 0:01:26]}  Qd6 {[%clk 0:02:06]} 23. Rd1 {[%clk 0:00:55]}  Ke7 {[%clk 0:01:57]} 24. Ne4 {[%clk 0:00:52]}  Qb8 {[%clk 0:01:55]} 25. Bg5+ {[%clk 0:00:51]}  Kf8 {[%clk 0:01:54]} 26. Ng3 {[%clk 0:00:39]}  Nf7 {[%clk 0:01:55]} 27. Be3 {[%clk 0:00:33]}  Qb5 {[%clk 0:01:52]} 28. Qxb5 {[%clk 0:00:30]}  axb5 {[%clk 0:01:53]} 29. a6 {[%clk 0:00:30]}  e5 {[%clk 0:01:50]} 30. Rxd5 {[%clk 0:00:24]}  Re6 {[%clk 0:01:49]} 31. Rxb5 {[%clk 0:00:22]}  Be7 {[%clk 0:01:46]} 32. a7 {[%clk 0:00:21]}  Nd6 {[%clk 0:01:46]} 33. Rb8+ {[%clk 0:00:20]} 1-0


[Site "https://www.chess.com"]

[Event "Titled Tuesday Blitz March 01 Late 2022"]
[White "Ezat, Mohamed"]
[Black "Salinas Herrera, Pablo"]
[WhiteFideId "10600906"]
[BlackFideId "3407128"]
[WhiteElo "2386"]
[BlackElo "2541"]
[Result "1/2-1/2"]
[Round "06"]
[TimeControl "180+1"]
[Date "2022.03.01"]
[WhiteClock "0:00:40"]
[BlackClock "0:00:04"]

1. d4 {[%clk 0:02:58]}  d5 {[%clk 0:03:00]} 2. c4 {[%clk 0:02:57]}  e6 {[%clk 0:03:00]} 3. Nc3 {[%clk 0:02:56]}  Nf6 {[%clk 0:03:00]} 4. cxd5 {[%clk 0:02:56]}  exd5 {[%clk 0:03:01]} 5. Bg5 {[%clk 0:02:56]}  c6 {[%clk 0:03:01]} 6. Qc2 {[%clk 0:02:56]}  h6 {[%clk 0:03:00]} 7. Bxf6 {[%clk 0:02:55]}  Qxf6 {[%clk 0:03:01]} 8. e3 {[%clk 0:02:55]}  Nd7 {[%clk 0:02:40]} 9. Bd3 {[%clk 0:02:54]}  Bd6 {[%clk 0:02:36]} 10. Nge2 {[%clk 0:02:53]}  O-O {[%clk 0:02:36]} 11. O-O {[%clk 0:02:52]}  Re8 {[%clk 0:02:36]} 12. Rab1 {[%clk 0:02:52]}  a5 {[%clk 0:02:36]} 13. a3 {[%clk 0:02:52]}  Qe7 {[%clk 0:02:36]} 14. b4 {[%clk 0:02:50]}  axb4 {[%clk 0:02:36]} 15. axb4 {[%clk 0:02:50]}  Bxb4 {[%clk 0:02:33]} 16. Ng3 {[%clk 0:02:51]}  Nf6 {[%clk 0:02:24]} 17. Bf5 {[%clk 0:02:49]}  Bxc3 {[%clk 0:01:36]} 18. Qxc3 {[%clk 0:02:46]}  Bxf5 {[%clk 0:01:35]} 19. Nxf5 {[%clk 0:02:45]}  Qd7 {[%clk 0:01:36]} 20. Qc2 {[%clk 0:02:41]}  Ne4 {[%clk 0:01:30]} 21. Ng3 {[%clk 0:02:41]}  Nd6 {[%clk 0:01:29]} 22. Rb3 {[%clk 0:02:38]}  Ra7 {[%clk 0:01:28]} 23. h3 {[%clk 0:02:35]}  Rea8 {[%clk 0:01:28]} 24. e4 {[%clk 0:02:30]}  dxe4 {[%clk 0:01:26]} 25. Nxe4 {[%clk 0:02:29]}  Nxe4 {[%clk 0:01:26]} 26. Qxe4 {[%clk 0:02:28]}  Rd8 {[%clk 0:01:27]} 27. Rfb1 {[%clk 0:02:24]}  b5 {[%clk 0:00:41]} 28. Rc3 {[%clk 0:02:17]}  Ra6 {[%clk 0:00:34]} 29. Rbc1 {[%clk 0:02:06]}  Qxd4 {[%clk 0:00:27]} 30. Qxd4 {[%clk 0:01:40]}  Rxd4 {[%clk 0:00:28]} 31. Rxc6 {[%clk 0:01:41]}  Rxc6 {[%clk 0:00:29]} 32. Rxc6 {[%clk 0:01:41]}  b4 {[%clk 0:00:28]} 33. Rc7 {[%clk 0:01:41]}  g5 {[%clk 0:00:27]} 34. g3 {[%clk 0:01:40]}  Kg7 {[%clk 0:00:27]} 35. Rc6 {[%clk 0:01:38]}  Rd2 {[%clk 0:00:21]} 36. Rb6 {[%clk 0:01:37]}  Rb2 {[%clk 0:00:22]} 37. Kg2 {[%clk 0:01:37]}  f6 {[%clk 0:00:20]} 38. Kf3 {[%clk 0:01:37]}  Kf7 {[%clk 0:00:18]} 39. Kg4 {[%clk 0:01:35]}  Kg6 {[%clk 0:00:15]} 40. Kf3 {[%clk 0:01:30]}  Kf7 {[%clk 0:00:16]} 41. Kg4 {[%clk 0:01:30]}  Rxf2 {[%clk 0:00:16]} 42. Kh5 {[%clk 0:01:15]}  Rf3 {[%clk 0:00:11]} 43. Kg4 {[%clk 0:01:12]}  Rb3 {[%clk 0:00:10]} 44. h4 {[%clk 0:01:03]}  gxh4 {[%clk 0:00:08]} 45. gxh4 {[%clk 0:01:03]}  Rb1 {[%clk 0:00:05]} 46. Kf5 {[%clk 0:00:55]}  Rf1+ {[%clk 0:00:05]} 47. Kg4 {[%clk 0:00:55]}  Rb1 {[%clk 0:00:02]} 48. Kf5 {[%clk 0:00:54]}  Ke7 {[%clk 0:00:03]} 49. Rb7+ {[%clk 0:00:52]}  Kd6 {[%clk 0:00:03]} 50. Kxf6 {[%clk 0:00:53]}  Kc5 {[%clk 0:00:03]} 51. Kg6 {[%clk 0:00:52]}  Rh1 {[%clk 0:00:04]} 52. h5 {[%clk 0:00:52]}  Kc4 {[%clk 0:00:04]} 53. Kxh6 {[%clk 0:00:52]}  b3 {[%clk 0:00:05]} 54. Kg6 {[%clk 0:00:50]}  Kc3 {[%clk 0:00:05]} 55. Rc7+ {[%clk 0:00:49]}  Kd2 {[%clk 0:00:05]} 56. Rb7 {[%clk 0:00:48]}  Kc2 {[%clk 0:00:06]} 57. h6 {[%clk 0:00:48]}  Rg1+ {[%clk 0:00:05]} 58. Kf7 {[%clk 0:00:47]}  Rf1+ {[%clk 0:00:06]} 59. Kg7 {[%clk 0:00:47]}  Rg1+ {[%clk 0:00:06]} 60. Kf7 {[%clk 0:00:47]}  Rf1+ {[%clk 0:00:06]} 61. Kg7 {[%clk 0:00:47]}  b2 {[%clk 0:00:06]} 62. h7 {[%clk 0:00:45]}  Rg1+ {[%clk 0:00:06]} 63. Kf7 {[%clk 0:00:45]}  Rh1 {[%clk 0:00:06]} 64. Kg8 {[%clk 0:00:43]}  Rg1+ {[%clk 0:00:06]} 65. Kf8 {[%clk 0:00:43]}  Rf1+ {[%clk 0:00:06]} 66. Kg8 {[%clk 0:00:42]}  Rg1+ {[%clk 0:00:04]} 67. Kf8 {[%clk 0:00:42]}  Rh1 {[%clk 0:00:04]} 68. Kg8 {[%clk 0:00:41]}  Rxh7 {[%clk 0:00:03]} 69. Kxh7 {[%clk 0:00:40]}  b1=Q {[%clk 0:00:03]} 70. Rxb1 {[%clk 0:00:40]}  Kxb1 {[%clk 0:00:04]} 1/2-1/2


[Site "https://www.chess.com"]

[Event "Titled Tuesday Blitz March 01 Late 2022"]
[White "Fishbein, Alexander"]
[Black "Ibarra Jerez, Jose Carlos"]
[WhiteFideId "2000377"]
[BlackFideId "2226332"]
[WhiteElo "2442"]
[BlackElo "2626"]
[Result "1-0"]
[Round "06"]
[TimeControl "180+1"]
[Date "2022.03.01"]
[WhiteClock "0:00:29"]
[BlackClock "0:00:03"]

1. e4 {[%clk 0:03:00]}  c5 {[%clk 0:02:57]} 2. Nf3 {[%clk 0:03:00]}  e6 {[%clk 0:02:58]} 3. d4 {[%clk 0:02:59]}  cxd4 {[%clk 0:02:59]} 4. Nxd4 {[%clk 0:02:59]}  Bc5 {[%clk 0:02:59]} 5. Nb3 {[%clk 0:02:56]}  Bb6 {[%clk 0:02:59]} 6. Bd3 {[%clk 0:02:54]}  Ne7 {[%clk 0:03:00]} 7. N1d2 {[%clk 0:02:50]}  d5 {[%clk 0:02:54]} 8. O-O {[%clk 0:02:48]}  O-O {[%clk 0:02:53]} 9. exd5 {[%clk 0:02:46]}  exd5 {[%clk 0:02:53]} 10. h3 {[%clk 0:02:41]}  Nbc6 {[%clk 0:02:53]} 11. Nf3 {[%clk 0:02:39]}  Ng6 {[%clk 0:02:52]} 12. Re1 {[%clk 0:02:34]}  h6 {[%clk 0:02:32]} 13. Be3 {[%clk 0:02:31]}  Bc7 {[%clk 0:02:32]} 14. Nbd4 {[%clk 0:02:27]}  Re8 {[%clk 0:02:12]} 15. Bxg6 {[%clk 0:02:19]}  fxg6 {[%clk 0:02:10]} 16. Qd3 {[%clk 0:02:20]}  Re4 {[%clk 0:01:58]} 17. Nb5 {[%clk 0:02:01]}  Ba5 {[%clk 0:00:52]} 18. Red1 {[%clk 0:01:55]}  Bf5 {[%clk 0:00:43]} 19. Qxd5+ {[%clk 0:01:49]}  Qxd5 {[%clk 0:00:43]} 20. Rxd5 {[%clk 0:01:49]}  Nb4 {[%clk 0:00:43]} 21. Rxf5 {[%clk 0:01:30]}  gxf5 {[%clk 0:00:38]} 22. Nd6 {[%clk 0:01:29]}  Re6 {[%clk 0:00:27]} 23. Nxb7 {[%clk 0:01:28]}  Nxc2 {[%clk 0:00:20]} 24. Rc1 {[%clk 0:01:24]}  Nxe3 {[%clk 0:00:20]} 25. Nxa5 {[%clk 0:01:22]}  Nd5 {[%clk 0:00:20]} 26. Nd4 {[%clk 0:01:19]}  Ra6 {[%clk 0:00:13]} 27. Rc5 {[%clk 0:01:18]}  Ne7 {[%clk 0:00:07]} 28. b4 {[%clk 0:01:18]}  Rd8 {[%clk 0:00:06]} 29. Nxf5 {[%clk 0:01:05]}  Nxf5 {[%clk 0:00:07]} 30. Rxf5 {[%clk 0:01:05]}  Rd4 {[%clk 0:00:07]} 31. a3 {[%clk 0:01:04]}  Rd1+ {[%clk 0:00:07]} 32. Kh2 {[%clk 0:01:03]}  Rd3 {[%clk 0:00:05]} 33. Nc4 {[%clk 0:01:01]}  Rc3 {[%clk 0:00:04]} 34. Rc5 {[%clk 0:01:00]}  Rf6 {[%clk 0:00:03]} 35. f3 {[%clk 0:00:48]}  Rf4 {[%clk 0:00:04]} 36. Nd6 {[%clk 0:00:45]}  Rxa3 {[%clk 0:00:03]} 37. Rc8+ {[%clk 0:00:41]}  Rf8 {[%clk 0:00:03]} 38. Rc7 {[%clk 0:00:41]}  Rb8 {[%clk 0:00:03]} 39. Nf5 {[%clk 0:00:39]}  Rxb4 {[%clk 0:00:03]} 40. Rxg7+ {[%clk 0:00:39]}  Kf8 {[%clk 0:00:03]} 41. Rh7 {[%clk 0:00:38]}  Rb2 {[%clk 0:00:04]} 42. Rxh6 {[%clk 0:00:36]}  Raa2 {[%clk 0:00:04]} 43. Rg6 {[%clk 0:00:36]}  a5 {[%clk 0:00:03]} 44. h4 {[%clk 0:00:36]}  Kf7 {[%clk 0:00:03]} 45. h5 {[%clk 0:00:36]}  Rb5 {[%clk 0:00:02]} 46. Nd6+ {[%clk 0:00:35]}  Ke7 {[%clk 0:00:03]} 47. Nxb5 {[%clk 0:00:36]}  a4 {[%clk 0:00:04]} 48. h6 {[%clk 0:00:35]}  Kf7 {[%clk 0:00:03]} 49. Rg7+ {[%clk 0:00:34]}  Kf6 {[%clk 0:00:03]} 50. Ra7 {[%clk 0:00:34]}  Rb2 {[%clk 0:00:04]} 51. Ra6+ {[%clk 0:00:31]}  Kg5 {[%clk 0:00:04]} 52. h7 {[%clk 0:00:30]}  Rxb5 {[%clk 0:00:03]} 53. h8=Q {[%clk 0:00:29]} 1-0


[Site "https://www.chess.com"]

[Event "Titled Tuesday Blitz March 01 Late 2022"]
[White "Gerbelli Neto, Eduardo"]
[Black "Okike, David"]
[WhiteFideId "2103281"]
[BlackFideId "8500134"]
[WhiteElo "2178"]
[BlackElo "2232"]
[Result "1-0"]
[Round "06"]
[TimeControl "180+1"]
[Date "2022.03.02"]
[WhiteClock "0:00:57"]
[BlackClock "0:01:24"]

1. e4 {[%clk 0:03:00]}  c5 {[%clk 0:02:59]} 2. Nc3 {[%clk 0:03:00]}  Nc6 {[%clk 0:02:58]} 3. f4 {[%clk 0:03:01]}  g6 {[%clk 0:02:58]} 4. Nf3 {[%clk 0:03:02]}  Bg7 {[%clk 0:02:58]} 5. Bc4 {[%clk 0:03:02]}  Nh6 {[%clk 0:02:58]} 6. O-O {[%clk 0:02:59]}  O-O {[%clk 0:02:58]} 7. d3 {[%clk 0:03:00]}  d6 {[%clk 0:02:58]} 8. Qe1 {[%clk 0:03:00]}  Bg4 {[%clk 0:02:57]} 9. f5 {[%clk 0:02:48]}  gxf5 {[%clk 0:02:54]} 10. Qh4 {[%clk 0:02:46]}  fxe4 {[%clk 0:02:29]} 11. dxe4 {[%clk 0:02:45]}  Bxf3 {[%clk 0:02:28]} 12. Bxh6 {[%clk 0:02:33]}  Bd4+ {[%clk 0:02:08]} 13. Kh1 {[%clk 0:02:32]}  Ne5 {[%clk 0:02:07]} 14. Qg5+ {[%clk 0:02:19]}  Ng6 {[%clk 0:02:03]} 15. gxf3 {[%clk 0:02:20]}  Re8 {[%clk 0:02:00]} 16. f4 {[%clk 0:02:13]}  Bf6 {[%clk 0:01:58]} 17. Qg2 {[%clk 0:02:09]}  Kh8 {[%clk 0:01:58]} 18. Bxf7 {[%clk 0:02:03]}  Rf8 {[%clk 0:01:56]} 19. Bxg6 {[%clk 0:02:02]}  Rg8 {[%clk 0:01:56]} 20. f5 {[%clk 0:02:00]}  hxg6 {[%clk 0:01:56]} 21. fxg6 {[%clk 0:02:00]}  Qe8 {[%clk 0:01:54]} 22. Rxf6 {[%clk 0:01:46]}  exf6 {[%clk 0:01:47]} 23. Rg1 {[%clk 0:01:46]}  Qe5 {[%clk 0:01:39]} 24. Bf4 {[%clk 0:01:32]}  Qh5 {[%clk 0:01:37]} 25. Nd5 {[%clk 0:01:10]}  Raf8 {[%clk 0:01:34]} 26. Bxd6 {[%clk 0:01:08]}  Rd8 {[%clk 0:01:32]} 27. Be7 {[%clk 0:01:03]}  Rdf8 {[%clk 0:01:24]} 28. Bxf8 {[%clk 0:00:57]}  Rxf8 {[%clk 0:01:24]} 29. g7+ {[%clk 0:00:57]} 1-0


[Site "https://www.chess.com"]

[Event "Titled Tuesday Blitz March 01 Late 2022"]
[White "Goryachkina, Aleksandra"]
[Black "Cardoso Cardoso, Jose Gabriel"]
[WhiteFideId "4147103"]
[BlackFideId "4430492"]
[WhiteElo "2426"]
[BlackElo "2451"]
[Result "1-0"]
[Round "06"]
[TimeControl "180+1"]
[Date "2022.03.01"]
[WhiteClock "0:00:14"]
[BlackClock "0:00:02"]

1. e4 {[%clk 0:03:00]}  g6 {[%clk 0:02:52]} 2. d4 {[%clk 0:02:59]}  Bg7 {[%clk 0:02:51]} 3. c4 {[%clk 0:02:59]}  d6 {[%clk 0:02:51]} 4. Nc3 {[%clk 0:02:59]}  Nc6 {[%clk 0:02:51]} 5. Be3 {[%clk 0:02:59]}  e5 {[%clk 0:02:52]} 6. d5 {[%clk 0:02:59]}  Nd4 {[%clk 0:02:52]} 7. Qd2 {[%clk 0:02:43]}  c5 {[%clk 0:02:50]} 8. dxc6 {[%clk 0:02:34]}  bxc6 {[%clk 0:02:51]} 9. Nge2 {[%clk 0:02:30]}  c5 {[%clk 0:02:50]} 10. Nd5 {[%clk 0:02:26]}  Be6 {[%clk 0:02:42]} 11. Nec3 {[%clk 0:02:15]}  Rb8 {[%clk 0:02:36]} 12. Be2 {[%clk 0:02:11]}  Qd7 {[%clk 0:02:17]} 13. Bd1 {[%clk 0:02:07]}  Qb7 {[%clk 0:02:10]} 14. Ba4+ {[%clk 0:02:03]}  Kf8 {[%clk 0:02:09]} 15. O-O {[%clk 0:01:58]}  Nf6 {[%clk 0:01:53]} 16. Nxf6 {[%clk 0:01:40]}  Bxf6 {[%clk 0:01:52]} 17. b3 {[%clk 0:01:40]}  h5 {[%clk 0:01:48]} 18. f4 {[%clk 0:01:37]}  Kg7 {[%clk 0:01:38]} 19. Rae1 {[%clk 0:01:28]}  exf4 {[%clk 0:01:32]} 20. Bxf4 {[%clk 0:01:27]}  Be5 {[%clk 0:01:32]} 21. Bxe5+ {[%clk 0:01:14]}  dxe5 {[%clk 0:01:29]} 22. Qg5 {[%clk 0:01:13]}  Qc7 {[%clk 0:01:25]} 23. Rf6 {[%clk 0:01:04]}  h4 {[%clk 0:01:01]} 24. Ref1 {[%clk 0:00:59]}  Rh5 {[%clk 0:00:59]} 25. Qd2 {[%clk 0:00:56]}  Qa5 {[%clk 0:00:52]} 26. Kh1 {[%clk 0:00:39]}  Ne2 {[%clk 0:00:23]} 27. Rxe6 {[%clk 0:00:32]}  fxe6 {[%clk 0:00:11]} 28. Qd7+ {[%clk 0:00:31]}  Kh6 {[%clk 0:00:10]} 29. Nxe2 {[%clk 0:00:31]}  Rd8 {[%clk 0:00:07]} 30. Qxe6 {[%clk 0:00:28]}  Qd2 {[%clk 0:00:07]} 31. Ng1 {[%clk 0:00:22]}  h3 {[%clk 0:00:08]} 32. Nxh3 {[%clk 0:00:20]}  Qe2 {[%clk 0:00:08]} 33. Qf6 {[%clk 0:00:15]}  Re8 {[%clk 0:00:02]} 34. Bxe8 {[%clk 0:00:14]} 1-0


[Site "https://www.chess.com"]